{"text_format":"1","workbook":"xlsx","n_sheets":42,"sheets":["Countries","Home Page","Sheet1","Sheet2","Sheet3","Sheet4","Sheet5","Sheet6","Sheet7","Sheet8","Sheet9","Sheet10","Sheet11","Sheet12","Sheet13","Sheet14","Residents Analysis","Literates Analysis","Drivers Analysis","Vehicles Analysis","Vehicles Analysis - 2","Roads Analysis","Fines Analysis","Accidents Analysis","Injures Analysis","Accident Causes","Accident Categories","Car License Types","Age Periods Analysis","Age Periods Analysis per Gender","Age Periods Percentages","Age Periods Percentages-Gender","Drivers Age Periods","Drivers Mistakes Analysis","Drivers Mistakes Percentages","Injury Seriousness Analysis","Injury Seriousness Percentages","Lightning Types Analysis","Road Condition Analysis","Road Types Analysis","Road User Condition Analysis","Weather Condition Analysis"],"not_rendered":{"charts":35,"images":1,"macros":1,"external_links":0,"defined_names":20,"comments":0,"pivot_tables":0},"unopened":[],"bounds":{"document_bytes":16777216,"sheet_cells":100000,"rows_first":2000,"rows_last":500,"rows_between":2000,"halvings":0,"cell_chars":16384,"cell_head_chars":4096},"cells_cut":0,"cells_raw":0,"read":"whole","date_system":"1900"}

{"sheet":"Countries","index":0,"n_rows":14,"n_cols":1,"rows_kept":14,"cut":false,"hidden":true,"merged":[]}
["CountryName"]
["الامارات العربية المتحدة"]
["الجمهورية التونسية"]
["الجمهورية العربية السورية"]
["الجمهورية اللبنانية"]
["الجمهورية اليمنية"]
["المملكة الأردنية الهاشمية"]
["المملكة العربية السعودية"]
["المملكة المغربية"]
["جمهورية مصر العربية"]
["دولة قطر"]
["سلطنة عمان"]
["فلسطين"]
["مملكة البحرين"]

{"sheet":"Home Page","index":1,"n_rows":44,"n_cols":10,"rows_kept":44,"cut":false,"hidden":false,"merged":[[0,2,0,8],[1,3,1,7],[2,3,9,7]]}
[null,null,"Analysis of Road Safety in the "]
[null,null,null,"Arab Countries"]
[]
[]
[]
[]
[]
[]
[]
[]
[null,"Gender Analysis"]
[null,"Population Literates Status"]
[null,"Drivers' Analysis"]
[null,"Vehicles' Analysis"]
[null,"Vehicles' Analysis - 2"]
[null,"Roads' Analysis"]
[null,"Fines' Analysis"]
[null,"Accidents' Analysis"]
[null,"Injures' Analysis"]
["Select Country from the List"]
["المملكة المغربية"]
[null,"Accident Analysis - Factors"]
[null,"Accident Categories"]
[null,"Vehicles Category Analysis"]
[null,"Accidents Results"]
[null,"Age Periods Analysis per Gender"]
[null,"Involved residents as age category"]
[null,"Involved residents as age percentage as status"]
[null,"Drivers Analysis per Age Period"]
[null,"Accidents analysis - Drivers errors"]
[null,"Accidents analysis - Drivers errors percentage"]
[null,"Injury Analysis"]
[null,"Injuries percentage"]
[null,"Accidents analysis - Lighting Conditions"]
[null,"Accidents analysis - Road Condition"]
[null,"Accidents analysis - Road Type"]
[null,"Accidents analysis - Road User Condition"]
[null,"Accidents analysis - Weather Condition"]
[null,null,null,null,null,null,null,null,null,"Prepared by:"]
[null,null,null,null,null,null,null,null,null,"Arab Union of Land Transport"]
[]
[null,null,null,null,null,null,null,null,null,"Executed by:"]
[null,null,null,null,null,null,null,null,null,"Amin N. Muwafi"]
[null,null,null,null,null,null,null,null,null,"amin_muwafi@yahoo.com"]

{"sheet":"Sheet1","index":2,"n_rows":14,"n_cols":46,"rows_kept":14,"cut":false,"hidden":true,"merged":[]}
["CountryName","NoOfResidents","Area","NoOfMales","NoOfFemales","MalesToResidents","FemalesToResidents","DriversMalePercentage","Column1","DriversFemalePercentage","Column2","NoOfVehicles","VehiclesToPopulation","TotalRoadsLength","TotalRoadsLenghtToArea","Column4","AvgAccidentsPerYear","Column5","AvgAccidentsToRoadLength","AvgAccidentsToNoOfResidents","Column6","NoOfInjuresPerYear","NoOfInjuriesToNoOfResidents","AvgAccidentCostPerYear","RegisteringAccidents","AccidentsLocationsSpecification","SpecialInspectors","AnnualMaintenance","TrafficSigns","MinimumLicenseAge","Expr1","RoadSafetyActivities","FlyingAmbulance","GovernmentCouncils","PrivateCouncils","No of Vehicles Involved In Accidents","Total Fines Per Year","Total Fines To No Of Vehicles","Column3","Number of Literates","Number of Non Literates","Literates to Residents","Non Literates to Residents","Involved Vehicles to total Vehicles","Avg Accidents To No Of Vehicles","Injuries To Vehicles"]
["الامارات العربية المتحدة",4320000,83600,2929000,1391000,67.8,32.200000000000003,0,{"$f":"Table_viewCountriesTransactions[[#This Row],[DriversMalePercentage]]/Table_viewCountriesTransactions[[#This Row],[NoOfMales]]*1000","v":0},0,{"$f":"Table_viewCountriesTransactions[[#This Row],[DriversFemalePercentage]]/Table_viewCountriesTransactions[[#This Row],[NoOfFemales]]*1000","v":0},1314323,30.4,0,0,0.08,8269,0.08,8269,0.2,{"$f":"Table_viewCountriesTransactions[[#This Row],[NoOfInjuresPerYear]]/100000","v":0.10458000000000001},10458,0.2,0,"Yes","Yes","Yes","Others","Yes",18,"Yes","Events & Seminars","Yes","Yes","Yes",0,2488465,189.3,0.189,3749760,570420,86.8,13.2,0,{"$f":"Table_viewCountriesTransactions[[#This Row],[AvgAccidentsPerYear]]/Table_viewCountriesTransactions[[#This Row],[NoOfVehicles]]","v":6.2914519490262291E-3},{"$f":"Table_viewCountriesTransactions[[#This Row],[NoOfInjuresPerYear]]/Table_viewCountriesTransactions[[#This Row],[NoOfVehicles]]","v":7.9569481778832152E-3}]
["الجمهورية التونسية",9779000,162155,4918837,4860163,50.3,49.7,0,{"$f":"Table_viewCountriesTransactions[[#This Row],[DriversMalePercentage]]/Table_viewCountriesTransactions[[#This Row],[NoOfMales]]*1000","v":0},0,{"$f":"Table_viewCountriesTransactions[[#This Row],[DriversFemalePercentage]]/Table_viewCountriesTransactions[[#This Row],[NoOfFemales]]*1000","v":0},0,0,0,0,0.11,11544,0.12,11544,0.1,{"$f":"Table_viewCountriesTransactions[[#This Row],[NoOfInjuresPerYear]]/100000","v":0.15698000000000001},15698,0.2,0,"No","Yes","Yes","Others","Yes",18,"Yes","Events & Seminars","Yes","Yes","No",0,130212,130212,0.13,7588504,2190496,77.599999999999994,22.4,0,0,{"$f":"Table_viewCountriesTransactions[[#This Row],[NoOfInjuresPerYear]]/Table_viewCountriesTransactions[[#This Row],[NoOfVehicles]]","v":{"$error":"#DIV/0!"}}]
["الجمهورية العربية السورية",20479142,185000,10288944,10190198,50.2,49.8,0,{"$f":"Table_viewCountriesTransactions[[#This Row],[DriversMalePercentage]]/Table_viewCountriesTransactions[[#This Row],[NoOfMales]]*1000","v":0},0,{"$f":"Table_viewCountriesTransactions[[#This Row],[DriversFemalePercentage]]/Table_viewCountriesTransactions[[#This Row],[NoOfFemales]]*1000","v":0},956099,4.7,0,0,0.16,16985,0.16,16985,0.1,{"$f":"Table_viewCountriesTransactions[[#This Row],[NoOfInjuresPerYear]]/100000","v":0.10661},10661,0.1,0,"No","Yes","No","Others","Yes",18,"Yes","Events & Seminars","No","Yes","Yes",0,0,0,{"$f":"Table_viewCountriesTransactions[[#This Row],[Total Fines To No Of Vehicles]]/100","v":0},0,0,0,0,0,{"$f":"Table_viewCountriesTransactions[[#This Row],[AvgAccidentsPerYear]]/Table_viewCountriesTransactions[[#This Row],[NoOfVehicles]]","v":1.7764896731405428E-2},{"$f":"Table_viewCountriesTransactions[[#This Row],[NoOfInjuresPerYear]]/Table_viewCountriesTransactions[[#This Row],[NoOfVehicles]]","v":1.1150518931616914E-2}]
["الجمهورية اللبنانية",4000000,10452,0,0,0,0,0,0,0,0,1081477,27,6520,62.4,{"$f":"Table_viewCountriesTransactions[[#This Row],[AvgAccidentsPerYear]]/1000","v":0},0,0,0,0,{"$f":"Table_viewCountriesTransactions[[#This Row],[NoOfInjuresPerYear]]/100000","v":0},0,0,0,"Yes","Yes","Yes","Every 6 Months","Yes",0,"No","None","No","Yes","No",0,0,0,{"$f":"Table_viewCountriesTransactions[[#This Row],[Total Fines To No Of Vehicles]]/100","v":0},0,0,0,0,0,{"$f":"Table_viewCountriesTransactions[[#This Row],[AvgAccidentsPerYear]]/Table_viewCountriesTransactions[[#This Row],[NoOfVehicles]]","v":0},{"$f":"Table_viewCountriesTransactions[[#This Row],[NoOfInjuresPerYear]]/Table_viewCountriesTransactions[[#This Row],[NoOfVehicles]]","v":0}]
["الجمهورية اليمنية",19721643,555000,10016137,9705506,50.8,49.2,98,{"$f":"Table_viewCountriesTransactions[[#This Row],[DriversMalePercentage]]/Table_viewCountriesTransactions[[#This Row],[NoOfMales]]*1000","v":9.7842112183569377E-3},2,{"$f":"Table_viewCountriesTransactions[[#This Row],[DriversFemalePercentage]]/Table_viewCountriesTransactions[[#This Row],[NoOfFemales]]*1000","v":2.0606859652654895E-4},608339,3.1,24061,4.3,0.12,12343,0.05,51.3,0.1,{"$f":"Table_viewCountriesTransactions[[#This Row],[NoOfInjuresPerYear]]/100000","v":0.14291999999999999},14292,0.1,2459169155,"Yes","Yes","Yes","Yearly","No",18,"Yes","Events & Seminars","No","Yes","No",0,572463,94.1,{"$f":"Table_viewCountriesTransactions[[#This Row],[Total Fines To No Of Vehicles]]/100","v":0.94099999999999995},53,47,0,0,0,{"$f":"Table_viewCountriesTransactions[[#This Row],[AvgAccidentsPerYear]]/Table_viewCountriesTransactions[[#This Row],[NoOfVehicles]]","v":2.0289674013995486E-2},{"$f":"Table_viewCountriesTransactions[[#This Row],[NoOfInjuresPerYear]]/Table_viewCountriesTransactions[[#This Row],[NoOfVehicles]]","v":2.3493479786763631E-2}]
["المملكة الأردنية الهاشمية",4600000,89342,2401200,2198800,52.2,47.8,0,{"$f":"Table_viewCountriesTransactions[[#This Row],[DriversMalePercentage]]/Table_viewCountriesTransactions[[#This Row],[NoOfMales]]*1000","v":0},0,{"$f":"Table_viewCountriesTransactions[[#This Row],[DriversFemalePercentage]]/Table_viewCountriesTransactions[[#This Row],[NoOfFemales]]*1000","v":0},362811,7.9,7558,8.5,0.39,39005,0.51,516.1,0.8,{"$f":"Table_viewCountriesTransactions[[#This Row],[NoOfInjuresPerYear]]/100000","v":0.16259000000000001},16259,0.4,0,"Yes","Yes","Yes","Every 6 Months","Yes",18,"Yes","Events & Seminars","Yes","Yes","Yes",0,1023609,282.10000000000002,2.8000000000000001E-2,3919200,680800,85.2,14.8,0,{"$f":"Table_viewCountriesTransactions[[#This Row],[AvgAccidentsPerYear]]/Table_viewCountriesTransactions[[#This Row],[NoOfVehicles]]","v":0.10750776575131404},{"$f":"Table_viewCountriesTransactions[[#This Row],[NoOfInjuresPerYear]]/Table_viewCountriesTransactions[[#This Row],[NoOfVehicles]]","v":4.4813966500464431E-2}]
["المملكة العربية السعودية",22673538,2253300,12557260,10116278,55.4,44.6,100,{"$f":"Table_viewCountriesTransactions[[#This Row],[DriversMalePercentage]]/Table_viewCountriesTransactions[[#This Row],[NoOfMales]]*1000","v":7.9635207043574803E-3},0,{"$f":"Table_viewCountriesTransactions[[#This Row],[DriversFemalePercentage]]/Table_viewCountriesTransactions[[#This Row],[NoOfFemales]]*1000","v":0},439588,1.9,51000,2.2999999999999998,0.28999999999999998,293281,0.05,575.1,0.13,{"$f":"Table_viewCountriesTransactions[[#This Row],[NoOfInjuresPerYear]]/100000","v":0.34810999999999998},34811,0.2,0,"Yes","Yes","Yes","Others","Yes",18,"Yes","Events & Seminars","Yes","Yes","Yes",0,10077797,2292.6,2.3E-2,20044364,2629174,88.4,11.6,0,{"$f":"Table_viewCountriesTransactions[[#This Row],[AvgAccidentsPerYear]]/Table_viewCountriesTransactions[[#This Row],[NoOfVehicles]]","v":0.66717244328780589},{"$f":"Table_viewCountriesTransactions[[#This Row],[NoOfInjuresPerYear]]/Table_viewCountriesTransactions[[#This Row],[NoOfVehicles]]","v":7.9190059783251596E-2}]
["المملكة المغربية",29891708,710850,14972000,15116000,50.1,50.6,0,{"$f":"Table_viewCountriesTransactions[[#This Row],[DriversMalePercentage]]/Table_viewCountriesTransactions[[#This Row],[NoOfMales]]*1000","v":0},0,{"$f":"Table_viewCountriesTransactions[[#This Row],[DriversFemalePercentage]]/Table_viewCountriesTransactions[[#This Row],[NoOfFemales]]*1000","v":0},1950802,6.5,0,0,0.51,51687,0.51,51687,0.2,{"$f":"Table_viewCountriesTransactions[[#This Row],[NoOfInjuresPerYear]]/100000","v":0.84043999999999996},84044,0.3,11000000000,"Other","Yes","Yes","Others","Yes",18,"Yes","Events & Seminars","No","Yes","Yes",0,0,0,{"$f":"Table_viewCountriesTransactions[[#This Row],[Total Fines To No Of Vehicles]]/100","v":0},15555496,14532504,52,48.6,0,{"$f":"Table_viewCountriesTransactions[[#This Row],[AvgAccidentsPerYear]]/Table_viewCountriesTransactions[[#This Row],[NoOfVehicles]]","v":2.6495256822578611E-2},{"$f":"Table_viewCountriesTransactions[[#This Row],[NoOfInjuresPerYear]]/Table_viewCountriesTransactions[[#This Row],[NoOfVehicles]]","v":4.3081768421397972E-2}]
["جمهورية مصر العربية",69997318,1010500,35817628,34179690,51.2,48.8,0,{"$f":"Table_viewCountriesTransactions[[#This Row],[DriversMalePercentage]]/Table_viewCountriesTransactions[[#This Row],[NoOfMales]]*1000","v":0},0,{"$f":"Table_viewCountriesTransactions[[#This Row],[DriversFemalePercentage]]/Table_viewCountriesTransactions[[#This Row],[NoOfFemales]]*1000","v":0},3497167,5,45500,4.5,0.26,26109,0.05,57.4,0,{"$f":"Table_viewCountriesTransactions[[#This Row],[NoOfInjuresPerYear]]/100000","v":0.36},36000,0.1,0,"Yes","Yes","Yes","Yearly","Yes",18,"Yes","Events & Seminars","No","Yes","Yes",24153,16359790,467.8,4.7E-2,48805058,21191572,69.7,30.3,0.7,{"$f":"Table_viewCountriesTransactions[[#This Row],[AvgAccidentsPerYear]]/Table_viewCountriesTransactions[[#This Row],[NoOfVehicles]]","v":7.4657572829664696E-3},{"$f":"Table_viewCountriesTransactions[[#This Row],[NoOfInjuresPerYear]]/Table_viewCountriesTransactions[[#This Row],[NoOfVehicles]]","v":1.0294046581132671E-2}]
["دولة قطر",1015844,12000,724256,291488,71.3,28.7,297160,{"$f":"Table_viewCountriesTransactions[[#This Row],[DriversMalePercentage]]/Table_viewCountriesTransactions[[#This Row],[NoOfMales]]","v":0.41029691158927228},31283,{"$f":"Table_viewCountriesTransactions[[#This Row],[DriversFemalePercentage]]/Table_viewCountriesTransactions[[#This Row],[NoOfFemales]]","v":0.10732174223295642},393751,38.799999999999997,8929,74.400000000000006,2.3E-2,2362,0.02,26.5,0.2,{"$f":"Table_viewCountriesTransactions[[#This Row],[NoOfInjuresPerYear]]/100000","v":1.371E-2},1371,0.1,0,"Yes","Sometimes","Yes","Others","Yes",18,"Yes","Events & Seminars","No","Yes","No",0,0,0,{"$f":"Table_viewCountriesTransactions[[#This Row],[Total Fines To No Of Vehicles]]/100","v":0},610113,406209,60.1,40,0,{"$f":"Table_viewCountriesTransactions[[#This Row],[AvgAccidentsPerYear]]/Table_viewCountriesTransactions[[#This Row],[NoOfVehicles]]","v":5.9987149238986057E-3},{"$f":"Table_viewCountriesTransactions[[#This Row],[NoOfInjuresPerYear]]/Table_viewCountriesTransactions[[#This Row],[NoOfVehicles]]","v":3.4818959189944917E-3}]
["سلطنة عمان",2340815,309500,1313239,1027576,56.1,43.9,506525,{"$f":"Table_viewCountriesTransactions[[#This Row],[DriversMalePercentage]]/Table_viewCountriesTransactions[[#This Row],[NoOfMales]]","v":0.3857066383194529},72283,{"$f":"Table_viewCountriesTransactions[[#This Row],[DriversFemalePercentage]]/Table_viewCountriesTransactions[[#This Row],[NoOfFemales]]","v":7.0343215489657218E-2},468412,20,37227,12,9.4E-2,9460,0.02,25.4,0.4,{"$f":"Table_viewCountriesTransactions[[#This Row],[NoOfInjuresPerYear]]/100000","v":6.6360000000000002E-2},6636,0.3,0,"No","No","No","Others","No",0,"Yes","Events & Seminars","Yes","No","Yes",41168,452267,96.6,{"$f":"Table_viewCountriesTransactions[[#This Row],[Total Fines To No Of Vehicles]]/100","v":0.96599999999999997},0,0,0,0,8.8000000000000007,{"$f":"Table_viewCountriesTransactions[[#This Row],[AvgAccidentsPerYear]]/Table_viewCountriesTransactions[[#This Row],[NoOfVehicles]]","v":2.0195895920685207E-2},{"$f":"Table_viewCountriesTransactions[[#This Row],[NoOfInjuresPerYear]]/Table_viewCountriesTransactions[[#This Row],[NoOfVehicles]]","v":1.4167015362544085E-2}]
["فلسطين",3267565,0,1322264,1279405,40.5,39.200000000000003,75,{"$f":"Table_viewCountriesTransactions[[#This Row],[DriversMalePercentage]]/Table_viewCountriesTransactions[[#This Row],[NoOfMales]]*1000","v":5.6720896885947135E-2},25,{"$f":"Table_viewCountriesTransactions[[#This Row],[DriversFemalePercentage]]/Table_viewCountriesTransactions[[#This Row],[NoOfFemales]]*1000","v":1.9540333201761757E-2},166608,5.0999999999999996,2687,2687,{"$f":"Table_viewCountriesTransactions[[#This Row],[AvgAccidentsPerYear]]/1000","v":0},0,0,0,0,{"$f":"Table_viewCountriesTransactions[[#This Row],[NoOfInjuresPerYear]]/100000","v":0},0,0,0,"Yes","No","Yes","Yearly","No",18,"Yes","Events & Seminars","No","Yes","Yes",33567,0,0,{"$f":"Table_viewCountriesTransactions[[#This Row],[Total Fines To No Of Vehicles]]/100","v":0},182556,65404,5.6,2,20.100000000000001,{"$f":"Table_viewCountriesTransactions[[#This Row],[AvgAccidentsPerYear]]/Table_viewCountriesTransactions[[#This Row],[NoOfVehicles]]","v":0},{"$f":"Table_viewCountriesTransactions[[#This Row],[NoOfInjuresPerYear]]/Table_viewCountriesTransactions[[#This Row],[NoOfVehicles]]","v":0}]
["مملكة البحرين",689416,665,396277,293139,57.5,42.5,0,{"$f":"Table_viewCountriesTransactions[[#This Row],[DriversMalePercentage]]/Table_viewCountriesTransactions[[#This Row],[NoOfMales]]*1000","v":0},0,{"$f":"Table_viewCountriesTransactions[[#This Row],[DriversFemalePercentage]]/Table_viewCountriesTransactions[[#This Row],[NoOfFemales]]*1000","v":0},273230,39.6,2768,416.2,0.45900000000000002,45996,0.16,1661.7,0.67,{"$f":"Table_viewCountriesTransactions[[#This Row],[NoOfInjuresPerYear]]/100000","v":3.5229999999999997E-2},3523,0.5,0,"Yes","Yes","Yes","Yearly","Yes",18,"Yes","Events & Seminars","No","Yes","Yes",70062,114920,42.1,{"$f":"Table_viewCountriesTransactions[[#This Row],[Total Fines To No Of Vehicles]]/100","v":0.42100000000000004},647112,42304,93.9,6.1,25.6,{"$f":"Table_viewCountriesTransactions[[#This Row],[AvgAccidentsPerYear]]/Table_viewCountriesTransactions[[#This Row],[NoOfVehicles]]","v":0.16834169015115472},{"$f":"Table_viewCountriesTransactions[[#This Row],[NoOfInjuresPerYear]]/Table_viewCountriesTransactions[[#This Row],[NoOfVehicles]]","v":1.2893898913003696E-2}]

{"sheet":"Sheet2","index":3,"n_rows":31,"n_cols":3,"rows_kept":31,"cut":false,"hidden":true,"merged":[]}
["CountryName","AccidentCause","Quantity"]
["الامارات العربية المتحدة"]
["الجمهورية التونسية","عوامل بشرية",36]
["الجمهورية التونسية","عوامل تتعلق بالمركبة",4]
["الجمهورية التونسية","عوامل تتعلق بالطرق",1]
["الجمهورية التونسية","عوامل تتعلق بالطرق مع أي عوامل أخرى",24]
["الجمهورية العربية السورية"]
["الجمهورية اللبنانية"]
["الجمهورية اليمنية","عوامل بشرية",30]
["الجمهورية اليمنية","عوامل تتعلق بالمركبة",30]
["الجمهورية اليمنية","عوامل تتعلق بالطرق",20]
["الجمهورية اليمنية","عوامل بالبيئة",10]
["الجمهورية اليمنية","عوامل تتعلق بالطرق مع أي عوامل أخرى",10]
["المملكة الأردنية الهاشمية"]
["المملكة العربية السعودية"]
["المملكة المغربية","عوامل بشرية",86]
["المملكة المغربية","عوامل تتعلق بالمركبة",9]
["المملكة المغربية","عوامل تتعلق بالطرق",1]
["المملكة المغربية","عوامل بالبيئة",4]
["جمهورية مصر العربية"]
["دولة قطر","عوامل بشرية",98]
["دولة قطر","عوامل تتعلق بالمركبة",1]
["دولة قطر","عوامل تتعلق بالطرق",1]
["سلطنة عمان"]
["فلسطين","عوامل بشرية",10]
["فلسطين","عوامل تتعلق بالمركبة",5]
["مملكة البحرين","عوامل بشرية",96]
["مملكة البحرين","عوامل تتعلق بالمركبة",1]
["مملكة البحرين","عوامل تتعلق بالطرق",1]
["مملكة البحرين","عوامل بالبيئة",0]
["مملكة البحرين","عوامل تتعلق بالطرق مع أي عوامل أخرى",2]

{"sheet":"Sheet3","index":4,"n_rows":57,"n_cols":3,"rows_kept":57,"cut":false,"hidden":true,"merged":[]}
["CountryName","CategoryName","Quantity"]
["الامارات العربية المتحدة"]
["الجمهورية التونسية"]
["الجمهورية العربية السورية","ركوب صغيرة",433585]
["الجمهورية العربية السورية","ركوب متوسطة",44165]
["الجمهورية العربية السورية","ركوب كبيرة - باص",5305]
["الجمهورية العربية السورية","شاحنة",240987]
["الجمهورية العربية السورية","نقل مشترك",7106]
["الجمهورية العربية السورية","مركبة زراعية",127977]
["الجمهورية العربية السورية","أخرى",121233]
["الجمهورية اللبنانية","ركوب صغيرة",931475]
["الجمهورية اللبنانية","ركوب متوسطة",3995]
["الجمهورية اللبنانية","ركوب كبيرة - باص",8568]
["الجمهورية اللبنانية","شاحنة",98531]
["الجمهورية اللبنانية","نقل مشترك",201]
["الجمهورية اللبنانية","قاطرة مقطورة",739]
["الجمهورية اللبنانية","أخرى",37968]
["الجمهورية اليمنية","ركوب صغيرة",323685]
["الجمهورية اليمنية","نقل مشترك",271936]
["الجمهورية اليمنية","أخرى",12718]
["المملكة الأردنية الهاشمية"]
["المملكة العربية السعودية","ركوب صغيرة",308567]
["المملكة العربية السعودية","ركوب متوسطة",13763]
["المملكة العربية السعودية","ركوب كبيرة - باص",109242]
["المملكة العربية السعودية","شاحنة",7970]
["المملكة العربية السعودية","نقل مشترك",8394]
["المملكة العربية السعودية","مركبة زراعية",2415]
["المملكة العربية السعودية","أخرى",3000]
["المملكة المغربية"]
["جمهورية مصر العربية","ركوب صغيرة",1644807]
["جمهورية مصر العربية","ركوب متوسطة",133106]
["جمهورية مصر العربية","ركوب كبيرة - باص",68453]
["جمهورية مصر العربية","شاحنة",646391]
["جمهورية مصر العربية","نقل مشترك",315293]
["جمهورية مصر العربية","قاطرة مقطورة",58016]
["جمهورية مصر العربية","مركبة زراعية",23164]
["جمهورية مصر العربية","أخرى",207937]
["دولة قطر","ركوب صغيرة",266209]
["دولة قطر","قاطرة مقطورة",6664]
["دولة قطر","مركبة زراعية",10841]
["دولة قطر","أخرى",2282]
["سلطنة عمان"]
["فلسطين","ركوب صغيرة",87330]
["فلسطين","ركوب متوسطة",6711]
["فلسطين","ركوب كبيرة - باص",745]
["فلسطين","شاحنة",14637]
["فلسطين","نقل مشترك",24293]
["فلسطين","قاطرة مقطورة",757]
["فلسطين","مركبة زراعية",5944]
["فلسطين","أخرى",2063]
["مملكة البحرين","ركوب صغيرة",226221]
["مملكة البحرين","ركوب كبيرة - باص",6450]
["مملكة البحرين","شاحنة",22950]
["مملكة البحرين","نقل مشترك",11466]
["مملكة البحرين","قاطرة مقطورة",1180]
["مملكة البحرين","مركبة زراعية",17]
["مملكة البحرين","أخرى",4946]

{"sheet":"Sheet4","index":5,"n_rows":38,"n_cols":3,"rows_kept":38,"cut":false,"hidden":true,"merged":[]}
["CountryName","LicenseType","Type of Vehicles to Vehicles involved"]
["الامارات العربية المتحدة"]
["الجمهورية التونسية"]
["الجمهورية العربية السورية","نقل عام",35439]
["الجمهورية العربية السورية","نقل خاص",108423]
["الجمهورية العربية السورية","سياحي",233585]
["الجمهورية العربية السورية","نقل بضائع",240987]
["الجمهورية العربية السورية","حكومي",62482]
["الجمهورية اللبنانية","نقل عام",39169]
["الجمهورية اللبنانية","نقل خاص",6671]
["الجمهورية اللبنانية","سياحي",898399]
["الجمهورية اللبنانية","نقل بضائع",99270]
["الجمهورية اللبنانية","أخرى",37968]
["الجمهورية اليمنية","نقل عام",17263]
["الجمهورية اليمنية","نقل خاص",94416]
["الجمهورية اليمنية","نقل بضائع",39429]
["الجمهورية اليمنية","حكومي",2781]
["الجمهورية اليمنية","أخرى",1901]
["المملكة الأردنية الهاشمية"]
["المملكة العربية السعودية","نقل عام",13763]
["المملكة العربية السعودية","نقل خاص",95479]
["المملكة المغربية"]
["جمهورية مصر العربية","نقل عام",58633]
["جمهورية مصر العربية","نقل خاص",1985018]
["جمهورية مصر العربية","سياحي",9133]
["جمهورية مصر العربية","نقل بضائع",704407]
["جمهورية مصر العربية","حكومي",88773]
["جمهورية مصر العربية","أخرى",651203]
["دولة قطر","نقل عام",2017]
["دولة قطر","نقل خاص",100125]
["دولة قطر","حكومي",2088]
["سلطنة عمان"]
["فلسطين"]
["مملكة البحرين","نقل عام",2355]
["مملكة البحرين","نقل خاص",17139]
["مملكة البحرين","نقل بضائع",22325]
["مملكة البحرين","حكومي",1284]
["مملكة البحرين","أخرى",230127]

{"sheet":"Sheet5","index":6,"n_rows":47,"n_cols":7,"rows_kept":47,"cut":false,"hidden":true,"merged":[]}
["CountryName","AgePeriods","TotalAccidents","TotalInjuries","TotalDeaths","InjuriesPerAccidents","DeathsPerAccidents"]
["الامارات العربية المتحدة"]
["الجمهورية التونسية","10 - 18 سنة",1740,1579,161,90.747,9.2530000000000001]
["الجمهورية التونسية","أطفال دون سن 10 سنوات",1687,1477,210,87.552000000000007,12.448]
["الجمهورية التونسية","من 18 - 30 سنة",9133,8285,848,90.715000000000003,9.2850000000000001]
["الجمهورية التونسية","من 30 - 50 سنة",4244,3885,359,91.540999999999997,8.4589999999999996]
["الجمهورية التونسية","من 50 - فما فوق",550,472,78,85.817999999999998,14.182]
["الجمهورية العربية السورية","10 - 18 سنة",0,58,76,58,76]
["الجمهورية العربية السورية","أطفال دون سن 10 سنوات",0,68,47,68,47]
["الجمهورية العربية السورية","من 18 - 30 سنة",0,140,81,140,81]
["الجمهورية اللبنانية"]
["الجمهورية اليمنية","من 30 - 50 سنة",0,14292,2204,14292,2204]
["المملكة الأردنية الهاشمية","10 - 18 سنة",0,2897,67,2897,67]
["المملكة الأردنية الهاشمية","أطفال دون سن 10 سنوات",0,3477,136,3477,136]
["المملكة الأردنية الهاشمية","من 18 - 30 سنة",0,5061,159,5061,159]
["المملكة الأردنية الهاشمية","من 30 - 50 سنة",0,3515,120,3515,120]
["المملكة الأردنية الهاشمية","من 50 - فما فوق",0,1304,95,1304,95]
["المملكة العربية السعودية","10 - 18 سنة",8747,7509,1238,85.846999999999994,14.153]
["المملكة العربية السعودية","من 18 - 30 سنة",25835,22600,3235,87.477999999999994,12.522]
["المملكة العربية السعودية","من 30 - 50 سنة",6208,5986,222,96.424000000000007,3.5760000000000001]
["المملكة العربية السعودية","من 50 - فما فوق",5405,4382,1023,81.072999999999993,18.927]
["المملكة المغربية","10 - 18 سنة",4362,4180,182,95.828000000000003,4.1719999999999997]
["المملكة المغربية","أطفال دون سن 10 سنوات",6143,5842,301,95.1,4.9000000000000004]
["المملكة المغربية","من 18 - 30 سنة",38706,37300,1397,96.367000000000004,3.609]
["المملكة المغربية","من 30 - 50 سنة",24196,23044,1152,95.239000000000004,4.7610000000000001]
["المملكة المغربية","من 50 - فما فوق",8758,8052,706,91.938999999999993,8.0609999999999999]
["جمهورية مصر العربية","10 - 18 سنة",0,0,674,0,674]
["جمهورية مصر العربية","أطفال دون سن 10 سنوات",0,0,330,0,330]
["جمهورية مصر العربية","من 18 - 30 سنة",0,0,808,0,808]
["جمهورية مصر العربية","من 30 - 50 سنة",0,0,1445,0,1445]
["جمهورية مصر العربية","من 50 - فما فوق",0,0,1293,0,1293]
["دولة قطر","10 - 18 سنة",517,485,32,93.81,6.19]
["دولة قطر","أطفال دون سن 10 سنوات",19,16,3,84.210999999999999,15.789]
["دولة قطر","من 18 - 30 سنة",595,508,87,85.378,14.622]
["دولة قطر","من 30 - 50 سنة",374,352,22,94.117999999999995,5.8819999999999997]
["دولة قطر","من 50 - فما فوق",30,10,20,33.332999999999998,66.667000000000002]
["سلطنة عمان"]
["فلسطين","10 - 18 سنة",330,240,90,72.727000000000004,27.273]
["فلسطين","أطفال دون سن 10 سنوات",247,170,77,68.825999999999993,31.173999999999999]
["فلسطين","من 18 - 30 سنة",95,60,35,63.158000000000001,36.841999999999999]
["فلسطين","من 30 - 50 سنة",65,35,30,53.845999999999997,46.154000000000003]
["فلسطين","من 50 - فما فوق",75,50,25,66.667000000000002,33.332999999999998]
["مملكة البحرين","10 - 18 سنة",441,436,5,98.866,1.1339999999999999]
["مملكة البحرين","أطفال دون سن 10 سنوات",365,358,7,98.081999999999994,1.9179999999999999]
["مملكة البحرين","من 18 - 30 سنة",1329,1303,26,98.043999999999997,1.956]
["مملكة البحرين","من 30 - 50 سنة",1142,1114,28,97.548000000000002,2.452]
["مملكة البحرين","من 50 - فما فوق",246,235,11,95.528000000000006,4.4720000000000004]

{"sheet":"Sheet6","index":7,"n_rows":85,"n_cols":7,"rows_kept":85,"cut":false,"hidden":true,"merged":[]}
["TotalAccidents","TotalInjuries","TotalDeaths","InjuriesPerAccidents","DeathsPerAccidents","CountryName","Age Period & Gender"]
[null,null,null,null,null,"الامارات العربية المتحدة"]
[1431,1289,142,90.076999999999998,9.923,"الجمهورية التونسية","10 - 18 سنة Male"]
[309,290,19,93.850999999999999,6.149,"الجمهورية التونسية","10 - 18 سنة Female"]
[1234,1075,159,87.114999999999995,12.885,"الجمهورية التونسية","أطفال دون سن 10 سنوات Male"]
[453,402,51,88.742000000000004,11.257999999999999,"الجمهورية التونسية","أطفال دون سن 10 سنوات Female"]
[7767,7006,761,90.201999999999998,9.798,"الجمهورية التونسية","من 18 - 30 سنة Male"]
[1366,1279,87,93.631,6.3689999999999998,"الجمهورية التونسية","من 18 - 30 سنة Female"]
[3591,3295,296,91.757000000000005,8.2430000000000003,"الجمهورية التونسية","من 30 - 50 سنة Male"]
[653,590,63,90.352000000000004,9.6479999999999997,"الجمهورية التونسية","من 30 - 50 سنة Female"]
[473,406,67,85.834999999999994,14.164999999999999,"الجمهورية التونسية","من 50 - فما فوق Male"]
[77,66,11,85.713999999999999,14.286,"الجمهورية التونسية","من 50 - فما فوق Female"]
[0,24,72,24,72,"الجمهورية العربية السورية","10 - 18 سنة Male"]
[0,34,4,34,4,"الجمهورية العربية السورية","10 - 18 سنة Female"]
[0,43,3,43,3,"الجمهورية العربية السورية","أطفال دون سن 10 سنوات Male"]
[0,25,44,25,44,"الجمهورية العربية السورية","أطفال دون سن 10 سنوات Female"]
[0,94,8,94,8,"الجمهورية العربية السورية","من 18 - 30 سنة Male"]
[0,46,73,46,73,"الجمهورية العربية السورية","من 18 - 30 سنة Female"]
[null,null,null,null,null,"الجمهورية اللبنانية"]
[0,12190,1852,12190,1852,"الجمهورية اليمنية","من 30 - 50 سنة Male"]
[0,2102,352,2102,352,"الجمهورية اليمنية","من 30 - 50 سنة Female"]
[0,2897,67,2897,67,"المملكة الأردنية الهاشمية","10 - 18 سنة Male"]
[0,3477,136,3477,136,"المملكة الأردنية الهاشمية","أطفال دون سن 10 سنوات Male"]
[0,5061,159,5061,159,"المملكة الأردنية الهاشمية","من 18 - 30 سنة Male"]
[0,3515,120,3515,120,"المملكة الأردنية الهاشمية","من 30 - 50 سنة Male"]
[0,1304,95,1304,95,"المملكة الأردنية الهاشمية","من 50 - فما فوق Male"]
[7440,6433,1007,86.465000000000003,13.535,"المملكة العربية السعودية","10 - 18 سنة Male"]
[1307,1076,231,82.325999999999993,17.673999999999999,"المملكة العربية السعودية","10 - 18 سنة Female"]
[22131,19484,2647,88.039000000000001,11.961,"المملكة العربية السعودية","من 18 - 30 سنة Male"]
[3704,3116,588,84.125,15.875,"المملكة العربية السعودية","من 18 - 30 سنة Female"]
[5316,5136,180,96.614000000000004,3.3860000000000001,"المملكة العربية السعودية","من 30 - 50 سنة Male"]
[892,850,42,95.290999999999997,4.7089999999999996,"المملكة العربية السعودية","من 30 - 50 سنة Female"]
[4592,3758,834,81.837999999999994,18.161999999999999,"المملكة العربية السعودية","من 50 - فما فوق Male"]
[813,624,189,76.753,23.247,"المملكة العربية السعودية","من 50 - فما فوق Female"]
[3028,2891,137,95.475999999999999,4.524,"المملكة المغربية","10 - 18 سنة Male"]
[1334,1289,45,96.626999999999995,3.3730000000000002,"المملكة المغربية","10 - 18 سنة Female"]
[3814,3631,183,95.201999999999998,4.798,"المملكة المغربية","أطفال دون سن 10 سنوات Male"]
[2329,2211,118,94.933000000000007,5.0670000000000002,"المملكة المغربية","أطفال دون سن 10 سنوات Female"]
[31163,29905,1258,95.962999999999994,4.0369999999999999,"المملكة المغربية","من 18 - 30 سنة Male"]
[7543,7395,139,98.037999999999997,1.843,"المملكة المغربية","من 18 - 30 سنة Female"]
[18934,17938,996,94.74,5.26,"المملكة المغربية","من 30 - 50 سنة Male"]
[5262,5106,156,97.034999999999997,2.9649999999999999,"المملكة المغربية","من 30 - 50 سنة Female"]
[6449,5904,545,91.549000000000007,8.4510000000000005,"المملكة المغربية","من 50 - فما فوق Male"]
[2309,2148,161,93.027000000000001,6.9729999999999999,"المملكة المغربية","من 50 - فما فوق Female"]
[0,0,512,0,512,"جمهورية مصر العربية","10 - 18 سنة Male"]
[0,0,162,0,162,"جمهورية مصر العربية","10 - 18 سنة Female"]
[0,0,217,0,217,"جمهورية مصر العربية","أطفال دون سن 10 سنوات Male"]
[0,0,113,0,113,"جمهورية مصر العربية","أطفال دون سن 10 سنوات Female"]
[0,0,686,0,686,"جمهورية مصر العربية","من 18 - 30 سنة Male"]
[0,0,122,0,122,"جمهورية مصر العربية","من 18 - 30 سنة Female"]
[0,0,1242,0,1242,"جمهورية مصر العربية","من 30 - 50 سنة Male"]
[0,0,203,0,203,"جمهورية مصر العربية","من 30 - 50 سنة Female"]
[0,0,641,0,641,"جمهورية مصر العربية","من 50 - فما فوق Male"]
[0,0,652,0,652,"جمهورية مصر العربية","من 50 - فما فوق Female"]
[505,474,31,93.861000000000004,6.1390000000000002,"دولة قطر","10 - 18 سنة Male"]
[12,11,1,91.667000000000002,8.3330000000000002,"دولة قطر","10 - 18 سنة Female"]
[14,12,2,85.713999999999999,14.286,"دولة قطر","أطفال دون سن 10 سنوات Male"]
[5,4,1,80,20,"دولة قطر","أطفال دون سن 10 سنوات Female"]
[528,444,84,84.090999999999994,15.909000000000001,"دولة قطر","من 18 - 30 سنة Male"]
[67,64,3,95.522000000000006,4.4779999999999998,"دولة قطر","من 18 - 30 سنة Female"]
[322,305,17,94.72,5.28,"دولة قطر","من 30 - 50 سنة Male"]
[52,47,5,90.385000000000005,9.6150000000000002,"دولة قطر","من 30 - 50 سنة Female"]
[27,8,19,29.63,70.37,"دولة قطر","من 50 - فما فوق Male"]
[3,2,1,66.667000000000002,33.332999999999998,"دولة قطر","من 50 - فما فوق Female"]
[null,null,null,null,null,"سلطنة عمان"]
[195,140,55,71.795000000000002,28.204999999999998,"فلسطين","10 - 18 سنة Male"]
[135,100,35,74.073999999999998,25.925999999999998,"فلسطين","10 - 18 سنة Female"]
[127,80,47,62.991999999999997,37.008000000000003,"فلسطين","أطفال دون سن 10 سنوات Male"]
[120,90,30,75,25,"فلسطين","أطفال دون سن 10 سنوات Female"]
[55,35,20,63.636000000000003,36.363999999999997,"فلسطين","من 18 - 30 سنة Male"]
[40,25,15,62.5,37.5,"فلسطين","من 18 - 30 سنة Female"]
[35,20,15,57.143000000000001,42.856999999999999,"فلسطين","من 30 - 50 سنة Male"]
[30,15,15,50,50,"فلسطين","من 30 - 50 سنة Female"]
[45,30,15,66.667000000000002,33.332999999999998,"فلسطين","من 50 - فما فوق Male"]
[30,20,10,66.667000000000002,33.332999999999998,"فلسطين","من 50 - فما فوق Female"]
[301,296,5,98.338999999999999,1.661,"مملكة البحرين","10 - 18 سنة Male"]
[140,140,0,100,0,"مملكة البحرين","10 - 18 سنة Female"]
[221,216,5,97.738,2.262,"مملكة البحرين","أطفال دون سن 10 سنوات Male"]
[144,142,2,98.611000000000004,1.389,"مملكة البحرين","أطفال دون سن 10 سنوات Female"]
[934,911,23,97.537000000000006,2.4630000000000001,"مملكة البحرين","من 18 - 30 سنة Male"]
[395,392,3,99.241,0.75900000000000001,"مملكة البحرين","من 18 - 30 سنة Female"]
[814,789,25,96.929000000000002,3.0710000000000002,"مملكة البحرين","من 30 - 50 سنة Male"]
[328,325,3,99.084999999999994,0.91500000000000004,"مملكة البحرين","من 30 - 50 سنة Female"]
[190,179,11,94.210999999999999,5.7889999999999997,"مملكة البحرين","من 50 - فما فوق Male"]
[56,56,0,100,0,"مملكة البحرين","من 50 - فما فوق Female"]

{"sheet":"Sheet7","index":8,"n_rows":26,"n_cols":4,"rows_kept":26,"cut":false,"hidden":true,"merged":[]}
["CountryName","DriversAgePeriods","Drivers Per Age Category","Number of Drivers"]
["الامارات العربية المتحدة"]
["الجمهورية التونسية"]
["الجمهورية العربية السورية"]
["الجمهورية اللبنانية"]
["الجمهورية اليمنية","من 18 - 30 سنة",40,40]
["الجمهورية اليمنية","من 18 - 50 سنة",40,40]
["الجمهورية اليمنية","من 50 - فما فوق",20,20]
["المملكة الأردنية الهاشمية","من 18 - 30 سنة",16.600000000000001,128165]
["المملكة الأردنية الهاشمية","من 18 - 50 سنة",48,369812]
["المملكة الأردنية الهاشمية","من 50 - فما فوق",35.4,272539]
["المملكة العربية السعودية","من 18 - 30 سنة",32.9,162418]
["المملكة العربية السعودية","من 18 - 50 سنة",54.5,269006]
["المملكة العربية السعودية","من 50 - فما فوق",12.5,61898]
["المملكة المغربية"]
["جمهورية مصر العربية"]
["دولة قطر","من 18 - 30 سنة",16.399999999999999,69930]
["دولة قطر","من 18 - 50 سنة",67.599999999999994,288451]
["دولة قطر","من 50 - فما فوق",16,68162]
["سلطنة عمان"]
["فلسطين","من 18 - 30 سنة",22.8,79753]
["فلسطين","من 18 - 50 سنة",65.2,227993]
["فلسطين","من 50 - فما فوق",12,41862]
["مملكة البحرين","من 18 - 30 سنة",23.6,95123]
["مملكة البحرين","من 18 - 50 سنة",55.2,223036]
["مملكة البحرين","من 50 - فما فوق",21.2,85709]

{"sheet":"Sheet8","index":9,"n_rows":39,"n_cols":7,"rows_kept":39,"cut":false,"hidden":true,"merged":[]}
["Died","DeathsPerCountry","Injured","InjuriesPerCountry","Total","CountryName","DriverError"]
[null,null,null,null,null,"الامارات العربية المتحدة"]
[554,41.1,3353,30.5,3907,"الجمهورية التونسية","السرعة الزائدة"]
[144,10.7,1198,10.9,1342,"الجمهورية التونسية","اتخاذ مسرب خاطيء"]
[165,12.2,2065,18.8,2230,"الجمهورية التونسية","عدم التقيد بالعلامات المرورية"]
[45,3.3,1131,10.3,1176,"الجمهورية التونسية","عدم اعطاء أولوية للمشاة"]
[440,32.6,3231,29.4,3671,"الجمهورية التونسية","أخرى"]
[null,null,null,null,null,"الجمهورية العربية السورية"]
[null,null,null,null,null,"الجمهورية اللبنانية"]
[null,null,null,null,null,"الجمهورية اليمنية"]
[null,null,null,null,null,"المملكة الأردنية الهاشمية"]
[0,0,0,0,99602,"المملكة العربية السعودية","السرعة الزائدة"]
[0,0,0,0,13861,"المملكة العربية السعودية","عدم التقيد بالعلامات المرورية"]
[0,0,0,0,27001,"المملكة العربية السعودية","تجاوز الاشارة الضوئية"]
[0,0,0,0,325,"المملكة العربية السعودية","القيادة تحت تأثير الكحول أو المخدر أو المهدئات"]
[0,0,0,0,19552,"المملكة العربية السعودية","أخرى"]
[0,0,0,0,18233,"المملكة المغربية","القيادة بعكس اتجاه السير"]
[0,0,0,0,5245,"المملكة المغربية","السرعة الزائدة"]
[0,0,0,0,444,"المملكة المغربية","اتخاذ مسرب خاطيء"]
[0,0,0,0,1467,"المملكة المغربية","عدم التقيد بالعلامات المرورية"]
[0,0,0,0,924,"المملكة المغربية","تجاوز الاشارة الضوئية"]
[0,0,0,0,823,"المملكة المغربية","القيادة تحت تأثير الكحول أو المخدر أو المهدئات"]
[0,0,0,0,3773,"المملكة المغربية","عدم اعطاء أولوية للمشاة"]
[0,0,0,0,23157,"المملكة المغربية","أخرى"]
[null,null,null,null,null,"جمهورية مصر العربية"]
[1,0.6,2,0.1,3,"دولة قطر","القيادة بعكس اتجاه السير"]
[37,22.6,82,6,119,"دولة قطر","السرعة الزائدة"]
[2,1.2,23,1.7,25,"دولة قطر","تجاوز الاشارة الضوئية"]
[4,2.4,30,2.2000000000000002,34,"دولة قطر","القيادة تحت تأثير الكحول أو المخدر أو المهدئات"]
[5,3,14,1,19,"دولة قطر","عدم اعطاء أولوية للمشاة"]
[115,70.099999999999994,1220,89,1335,"دولة قطر","أخرى"]
[null,null,null,null,null,"سلطنة عمان"]
[280,70.900000000000006,2220,70.7,2400,"فلسطين","القيادة بعكس اتجاه السير"]
[115,29.1,920,29.3,1035,"فلسطين","السرعة الزائدة"]
[0,0,11,3,11,"مملكة البحرين","القيادة بعكس اتجاه السير"]
[27,73,86,23.6,113,"مملكة البحرين","السرعة الزائدة"]
[2,5.4,41,11.2,43,"مملكة البحرين","اتخاذ مسرب خاطيء"]
[2,5.4,144,39.5,146,"مملكة البحرين","عدم التقيد بالعلامات المرورية"]
[6,16.2,83,22.7,89,"مملكة البحرين","القيادة تحت تأثير الكحول أو المخدر أو المهدئات"]

{"sheet":"Sheet9","index":10,"n_rows":32,"n_cols":5,"rows_kept":32,"cut":false,"hidden":true,"merged":[]}
["Quantity","TotalInjuries","CountryName","InjurySeriousness","Seriousness injuries to total injuries"]
[null,null,"الامارات العربية المتحدة"]
[1656,1656,"الجمهورية التونسية","وفاة",100]
[1653,1653,"الجمهورية العربية السورية","وفاة",100]
[null,null,"الجمهورية اللبنانية"]
[2204,24200,"الجمهورية اليمنية","وفاة",9.1]
[5953,24200,"الجمهورية اليمنية","اصابة خطرة (تحتاج الى مبيت في المستشف ى لمدة لاتقل عن خمسة عشر يوما)",24.6]
[7704,24200,"الجمهورية اليمنية","اصابة متوسطة (تحتاج الى مبيت في المستشفى)",31.8]
[8339,24200,"الجمهورية اليمنية","اصابة بسيطة (لاتحتاج الى مبيت في المستشفى) (عدد)",34.5]
[577,16836,"المملكة الأردنية الهاشمية","وفاة",3.4]
[407,16836,"المملكة الأردنية الهاشمية","اصابة خطرة (تحتاج الى مبيت في المستشف ى لمدة لاتقل عن خمسة عشر يوما)",2.4]
[3879,16836,"المملكة الأردنية الهاشمية","اصابة متوسطة (تحتاج الى مبيت في المستشفى)",23]
[11973,16836,"المملكة الأردنية الهاشمية","اصابة بسيطة (لاتحتاج الى مبيت في المستشفى) (عدد)",71.099999999999994]
[4022,293281,"المملكة العربية السعودية","وفاة",1.4]
[21753,293281,"المملكة العربية السعودية","اصابة خطرة (تحتاج الى مبيت في المستشف ى لمدة لاتقل عن خمسة عشر يوما)",7.4]
[267506,293281,"المملكة العربية السعودية","اصابة متوسطة (تحتاج الى مبيت في المستشفى)",91.2]
[3894,84044,"المملكة المغربية","وفاة",4.5999999999999996]
[13579,84044,"المملكة المغربية","اصابة خطرة (تحتاج الى مبيت في المستشف ى لمدة لاتقل عن خمسة عشر يوما)",16.2]
[66571,84044,"المملكة المغربية","اصابة متوسطة (تحتاج الى مبيت في المستشفى)",79.2]
[4084,4084,"جمهورية مصر العربية","وفاة",100]
[164,1535,"دولة قطر","وفاة",10.7]
[313,1535,"دولة قطر","اصابة خطرة (تحتاج الى مبيت في المستشف ى لمدة لاتقل عن خمسة عشر يوما)",20.399999999999999]
[420,1535,"دولة قطر","اصابة متوسطة (تحتاج الى مبيت في المستشفى)",27.4]
[638,1535,"دولة قطر","اصابة بسيطة (لاتحتاج الى مبيت في المستشفى) (عدد)",41.6]
[null,null,"سلطنة عمان"]
[120,2120,"فلسطين","وفاة",5.7]
[200,2120,"فلسطين","اصابة خطرة (تحتاج الى مبيت في المستشف ى لمدة لاتقل عن خمسة عشر يوما)",9.4]
[800,2120,"فلسطين","اصابة متوسطة (تحتاج الى مبيت في المستشفى)",37.700000000000003]
[1000,2120,"فلسطين","اصابة بسيطة (لاتحتاج الى مبيت في المستشفى) (عدد)",47.2]
[77,3523,"مملكة البحرين","وفاة",2.2000000000000002]
[501,3523,"مملكة البحرين","اصابة خطرة (تحتاج الى مبيت في المستشف ى لمدة لاتقل عن خمسة عشر يوما)",14.2]
[2945,3523,"مملكة البحرين","اصابة بسيطة (لاتحتاج الى مبيت في المستشفى) (عدد)",83.6]

{"sheet":"Sheet10","index":11,"n_rows":21,"n_cols":7,"rows_kept":21,"cut":false,"hidden":true,"merged":[]}
["Died","DeathsPerCountryLightningType","Injured","InjuriesPerCountryLightningType","Total","CountryName","LightningType"]
[null,null,null,null,null,"الامارات العربية المتحدة"]
[916,55.3,9999,63.7,10915,"الجمهورية التونسية","نهارا"]
[740,44.7,5699,36.299999999999997,6439,"الجمهورية التونسية","ليلا واضاءة كافية"]
[null,null,null,null,null,"الجمهورية العربية السورية"]
[null,null,null,null,null,"الجمهورية اللبنانية"]
[null,null,null,null,null,"الجمهورية اليمنية"]
[null,null,null,null,null,"المملكة الأردنية الهاشمية"]
[null,null,null,null,null,"المملكة العربية السعودية"]
[2075,53.5,48600,57.5,50675,"المملكة المغربية","نهارا"]
[1803,46.5,35922,42.5,37725,"المملكة المغربية","ليلا واضاءة كافية"]
[null,null,null,null,null,"جمهورية مصر العربية"]
[110,67.099999999999994,1189,86.7,1299,"دولة قطر","نهارا"]
[52,31.7,176,12.8,228,"دولة قطر","ليلا واضاءة كافية"]
[2,1.2,6,0.4,8,"دولة قطر","ليلا واضاءة غير كافية"]
[null,null,null,null,null,"سلطنة عمان"]
[140,100,152,100,292,"فلسطين","نهارا"]
[40,51.9,1779,51.6,1819,"مملكة البحرين","نهارا"]
[31,40.299999999999997,1030,29.9,1061,"مملكة البحرين","ليلا واضاءة كافية"]
[4,5.2,602,17.5,606,"مملكة البحرين","ليلا واضاءة غير كافية"]
[2,2.6,35,1,37,"مملكة البحرين","ظلام"]

{"sheet":"Sheet11","index":12,"n_rows":23,"n_cols":7,"rows_kept":23,"cut":false,"hidden":true,"merged":[]}
["Died","Injured","Total","CountryName","LandType","Deaths per Country Road Land Condition","Injuries per Country Road Land Condition"]
[null,null,null,"الامارات العربية المتحدة"]
[null,null,null,"الجمهورية التونسية"]
[null,null,null,"الجمهورية العربية السورية"]
[null,null,null,"الجمهورية اللبنانية"]
[null,null,null,"الجمهورية اليمنية"]
[null,null,null,"المملكة الأردنية الهاشمية"]
[null,null,null,"المملكة العربية السعودية"]
[2932,47513,50445,"المملكة المغربية","جاف",91,93.9]
[215,2598,2813,"المملكة المغربية","مبتل",6.7,5.0999999999999996]
[2,28,30,"المملكة المغربية","ثلجي",0.1,0.1]
[34,115,149,"المملكة المغربية","طيني",1.1000000000000001,0.2]
[38,339,377,"المملكة المغربية","زيتي",1.2,0.7]
[null,null,null,"جمهورية مصر العربية"]
[161,1359,1520,"دولة قطر","جاف",98.2,99.1]
[3,12,15,"دولة قطر","ترابي/رملي",1.8,0.9]
[null,null,null,"سلطنة عمان"]
[null,null,null,"فلسطين"]
[35,2516,2551,"مملكة البحرين","جاف",45.5,73]
[2,49,51,"مملكة البحرين","مبتل",2.6,1.4]
[0,3,3,"مملكة البحرين","طيني",0,0.1]
[0,2,2,"مملكة البحرين","زيتي",0,0.1]
[40,876,916,"مملكة البحرين","ترابي/رملي",51.9,25.4]

{"sheet":"Sheet12","index":13,"n_rows":39,"n_cols":4,"rows_kept":39,"cut":false,"hidden":true,"merged":[]}
["CountryName","RoadType","Number of Accidents","Road Type Percentage"]
["الامارات العربية المتحدة","طرق سريعة  (خارجية)",534,27.8]
["الامارات العربية المتحدة","طرق مزدوجة (داخلية)",345,18]
["الامارات العربية المتحدة","طرق زراعية",80,4.2]
["الامارات العربية المتحدة","المجموع",959,50]
["الجمهورية التونسية","طرق سريعة  (خارجية)",4061,24.5]
["الجمهورية التونسية","طرق مزدوجة (داخلية)",192,1.2]
["الجمهورية التونسية","طرق زراعية",6511,39.299999999999997]
["الجمهورية التونسية","أخرى",5810,35.1]
["الجمهورية العربية السورية","طرق سريعة  (خارجية)",1014,2.2000000000000002]
["الجمهورية العربية السورية","طرق مزدوجة (داخلية)",5973,12.7]
["الجمهورية العربية السورية","طرق زراعية",40000,85.1]
["الجمهورية اللبنانية"]
["الجمهورية اليمنية","طرق سريعة  (خارجية)",10836,23.1]
["الجمهورية اليمنية","طرق زراعية",12624,26.9]
["الجمهورية اليمنية","المجموع",23460,50]
["المملكة الأردنية الهاشمية","طرق مزدوجة (داخلية)",3031,40.1]
["المملكة الأردنية الهاشمية","طرق زراعية",2483,32.9]
["المملكة الأردنية الهاشمية","أخرى",2044,27]
["المملكة العربية السعودية","طرق سريعة  (خارجية)",51000,15.2]
["المملكة العربية السعودية","طرق زراعية",117000,34.799999999999997]
["المملكة العربية السعودية","المجموع",168000,50]
["المملكة المغربية"]
["جمهورية مصر العربية","طرق سريعة  (خارجية)",22500,50]
["جمهورية مصر العربية","طرق مزدوجة (داخلية)",22500,50]
["دولة قطر","طرق سريعة  (خارجية)",688,3.8]
["دولة قطر","طرق مزدوجة (داخلية)",482,2.7]
["دولة قطر","أخرى",7768,43.5]
["دولة قطر","المجموع",8939,50]
["سلطنة عمان","طرق سريعة  (خارجية)",12365,16.600000000000001]
["سلطنة عمان","طرق مزدوجة (داخلية)",24862,33.4]
["سلطنة عمان","المجموع",37227,50]
["فلسطين","طرق سريعة  (خارجية)",5284,1.6]
["فلسطين","طرق مزدوجة (داخلية)",305560,91.2]
["فلسطين","طرق زراعية",24119,7.2]
["مملكة البحرين","طرق سريعة  (خارجية)",440,7.9]
["مملكة البحرين","طرق مزدوجة (داخلية)",487,8.8000000000000007]
["مملكة البحرين","أخرى",1841,33.299999999999997]
["مملكة البحرين","المجموع",2768,50]

{"sheet":"Sheet13","index":14,"n_rows":29,"n_cols":7,"rows_kept":29,"cut":false,"hidden":true,"merged":[]}
["Died","Injured","Total","CountryName","RoadUserType","Deaths per Country Road User Condition","Injuries per Country Road User Condition"]
[243,1608,1851,"الامارات العربية المتحدة","مشاة",29.5,15.7]
[345,4399,4744,"الامارات العربية المتحدة","سائق المركبة",41.9,43]
[236,4226,4462,"الامارات العربية المتحدة","المقاعد الخلفية للمركبة",28.6,41.3]
[497,4296,4793,"الجمهورية التونسية","مشاة",30,27.4]
[688,7242,7930,"الجمهورية التونسية","سائق المركبة",41.5,46.1]
[471,4160,4631,"الجمهورية التونسية","المقاعد الخلفية للمركبة",28.4,26.5]
[null,null,null,"الجمهورية العربية السورية"]
[null,null,null,"الجمهورية اللبنانية"]
[null,null,null,"الجمهورية اليمنية"]
[null,null,null,"المملكة الأردنية الهاشمية"]
[null,null,null,"المملكة العربية السعودية"]
[1176,18465,19643,"المملكة المغربية","مشاة",30.2,23]
[1434,32820,34254,"المملكة المغربية","سائق المركبة",36.799999999999997,40.9]
[1116,27260,28376,"المملكة المغربية","المقاعد الخلفية للمركبة",28.7,34]
[168,1603,1771,"المملكة المغربية","ركاب الحافلة",4.3,2]
[null,null,null,"جمهورية مصر العربية"]
[35,108,143,"دولة قطر","مشاة",21.3,7.9]
[77,122,196,"دولة قطر","سائق المركبة",47,8.9]
[30,710,740,"دولة قطر","بجانب السائق",18.3,51.8]
[20,414,434,"دولة قطر","المقاعد الخلفية للمركبة",12.2,30.2]
[2,17,19,"دولة قطر","ركاب الحافلة",1.2,1.2]
[152,606,758,"سلطنة عمان","مشاة",23.9,9.1]
[226,2705,2931,"سلطنة عمان","سائق المركبة",35.5,40.799999999999997]
[259,3325,3584,"سلطنة عمان","ركاب الحافلة",40.700000000000003,50.1]
[20,430,450,"فلسطين","مشاة",9.1,49.4]
[120,280,400,"فلسطين","سائق المركبة",54.5,32.200000000000003]
[80,160,240,"فلسطين","بجانب السائق",36.4,18.399999999999999]
[null,null,null,"مملكة البحرين"]

{"sheet":"Sheet14","index":15,"n_rows":24,"n_cols":7,"rows_kept":24,"cut":false,"hidden":true,"merged":[]}
["Amin","Injured","Total","CountryName","WeatherType","Deaths per Weather Condition","Injuries per Weather Condition"]
[null,null,null,"الامارات العربية المتحدة"]
[null,null,null,"الجمهورية التونسية"]
[null,null,null,"الجمهورية العربية السورية"]
[null,null,null,"الجمهورية اللبنانية"]
[2447,14598,17040,"الجمهورية اليمنية","صافي",100,100]
[null,null,null,"المملكة الأردنية الهاشمية"]
[null,null,null,"المملكة العربية السعودية"]
[2954,47505,50459,"المملكة المغربية","صافي",91.7,93.9]
[27,133,160,"المملكة المغربية","ضباب",0.8,0.3]
[184,2308,2492,"المملكة المغربية","ماطر",5.7,4.5999999999999996]
[3,34,37,"المملكة المغربية","ثلوج",0.1,0.1]
[10,39,49,"المملكة المغربية","رياح",0.3,0.1]
[43,574,617,"المملكة المغربية","غبار",1.3,1.1000000000000001]
[null,null,null,"جمهورية مصر العربية"]
[164,1371,1535,"دولة قطر","صافي",100,99.9]
[0,2,2,"دولة قطر","ضباب",0,0.1]
[null,null,null,"سلطنة عمان"]
[null,null,null,"فلسطين"]
[33,2485,2518,"مملكة البحرين","صافي",42.9,72.099999999999994]
[0,7,7,"مملكة البحرين","ضباب",0,0.2]
[2,14,16,"مملكة البحرين","ماطر",2.6,0.4]
[0,8,8,"مملكة البحرين","رياح",0,0.2]
[42,932,974,"مملكة البحرين","غبار",54.5,27]

{"sheet":"Residents Analysis","index":16,"n_rows":0,"n_cols":0,"rows_kept":0,"cut":false,"hidden":false,"merged":[]}

{"sheet":"Literates Analysis","index":17,"n_rows":0,"n_cols":0,"rows_kept":0,"cut":false,"hidden":false,"merged":[]}

{"sheet":"Drivers Analysis","index":18,"n_rows":0,"n_cols":0,"rows_kept":0,"cut":false,"hidden":false,"merged":[]}

{"sheet":"Vehicles Analysis","index":19,"n_rows":0,"n_cols":0,"rows_kept":0,"cut":false,"hidden":false,"merged":[]}

{"sheet":"Vehicles Analysis - 2","index":20,"n_rows":0,"n_cols":0,"rows_kept":0,"cut":false,"hidden":false,"merged":[]}

{"sheet":"Roads Analysis","index":21,"n_rows":0,"n_cols":0,"rows_kept":0,"cut":false,"hidden":false,"merged":[]}

{"sheet":"Fines Analysis","index":22,"n_rows":0,"n_cols":0,"rows_kept":0,"cut":false,"hidden":false,"merged":[]}

{"sheet":"Accidents Analysis","index":23,"n_rows":0,"n_cols":0,"rows_kept":0,"cut":false,"hidden":false,"merged":[]}

{"sheet":"Injures Analysis","index":24,"n_rows":0,"n_cols":0,"rows_kept":0,"cut":false,"hidden":false,"merged":[]}

{"sheet":"Accident Causes","index":25,"n_rows":0,"n_cols":0,"rows_kept":0,"cut":false,"hidden":false,"merged":[]}

{"sheet":"Accident Categories","index":26,"n_rows":0,"n_cols":0,"rows_kept":0,"cut":false,"hidden":false,"merged":[]}

{"sheet":"Car License Types","index":27,"n_rows":0,"n_cols":0,"rows_kept":0,"cut":false,"hidden":false,"merged":[]}

{"sheet":"Age Periods Analysis","index":28,"n_rows":0,"n_cols":0,"rows_kept":0,"cut":false,"hidden":false,"merged":[]}

{"sheet":"Age Periods Analysis per Gender","index":29,"n_rows":0,"n_cols":0,"rows_kept":0,"cut":false,"hidden":false,"merged":[]}

{"sheet":"Age Periods Percentages","index":30,"n_rows":0,"n_cols":0,"rows_kept":0,"cut":false,"hidden":false,"merged":[]}

{"sheet":"Age Periods Percentages-Gender","index":31,"n_rows":0,"n_cols":0,"rows_kept":0,"cut":false,"hidden":false,"merged":[]}

{"sheet":"Drivers Age Periods","index":32,"n_rows":0,"n_cols":0,"rows_kept":0,"cut":false,"hidden":false,"merged":[]}

{"sheet":"Drivers Mistakes Analysis","index":33,"n_rows":0,"n_cols":0,"rows_kept":0,"cut":false,"hidden":false,"merged":[]}

{"sheet":"Drivers Mistakes Percentages","index":34,"n_rows":0,"n_cols":0,"rows_kept":0,"cut":false,"hidden":false,"merged":[]}

{"sheet":"Injury Seriousness Analysis","index":35,"n_rows":0,"n_cols":0,"rows_kept":0,"cut":false,"hidden":false,"merged":[]}

{"sheet":"Injury Seriousness Percentages","index":36,"n_rows":0,"n_cols":0,"rows_kept":0,"cut":false,"hidden":false,"merged":[]}

{"sheet":"Lightning Types Analysis","index":37,"n_rows":0,"n_cols":0,"rows_kept":0,"cut":false,"hidden":false,"merged":[]}

{"sheet":"Road Condition Analysis","index":38,"n_rows":0,"n_cols":0,"rows_kept":0,"cut":false,"hidden":false,"merged":[]}

{"sheet":"Road Types Analysis","index":39,"n_rows":0,"n_cols":0,"rows_kept":0,"cut":false,"hidden":false,"merged":[]}

{"sheet":"Road User Condition Analysis","index":40,"n_rows":0,"n_cols":0,"rows_kept":0,"cut":false,"hidden":false,"merged":[]}

{"sheet":"Weather Condition Analysis","index":41,"n_rows":0,"n_cols":0,"rows_kept":0,"cut":false,"hidden":false,"merged":[]}